[Event "22nd ECCC Women 2017"]
[Site "Antalya"]
[Date "2017.10.11"]
[Round "2"]
[White "Okuyaz, Duru"]
[Black "Sahin, Handenur"]
[Result "1/2-1/2"]
[ECO "C60"]
[WhiteElo "2233"]
[BlackElo "1960"]
[Annotator "ChessBase"]
[PlyCount "123"]
[EventType "team-tourn"]
[EventCountry "TUR"]
[WhiteTeam "Marmara"]
[BlackTeam "Aegean"]
[TimeControl "40/5400+30:1800+30"]

1. e4 e5 2. Nf3 Nc6 3. Bb5 Nge7 4. O-O g6 5. c3 a6 6. Bxc6 {[%emt 0:01:00]} Nxc6 {[%emt 0:02:30]} 7. d4 {[%emt 0:00:30]} d6 {[%emt 0:01:30]} 8. Bg5 {[%emt 0:03:30]} Be7 {[%emt 0:08:30]} 9. Bh6 {[%emt 0:06:30]} Bg4 {[%emt 0:08:30]} 10. d5 {[%emt 0:07:30]} Nb8 {[%emt 0:06:30]} 11. h3 {[%emt 0:05:30]} Bxf3 {[%emt 0:04:30]} 12. Qxf3 {[%emt 0:00:30]} Bg5 {[%emt 0:02:30]} 13. Bxg5 {[%emt 0:03:30]} Qxg5 {[%emt 0:00:30]} 14. c4 {[%emt 0:04:30]} Nd7 {[%emt 0:03:30]} 15. Qg4 {[%emt 0:04:30]} Qxg4 {[%emt 0:10:30]} 16. hxg4 {[%emt 0:00:00]} Nf6 {[%emt 0:00:00]} 17. f3 {[%emt 0:03:00]} h5 {[%emt 0:03:00]} 18. gxh5 {[%emt 0:02:30]} Nxh5 {[%emt 0:00:30]} 19. Nc3 {[%emt 0:01:30]} b6 {[%emt 0:04:30]} 20. b4 {[%emt 0:08:30]} Kd7 {[%emt 0:06:30]} 21. c5 {[%emt 0:05:30]} Nf4 {[%emt 0:05:30]} 22. cxd6 {[%emt 0:08:30]} cxd6 {[%emt 0:00:30]} 23. g3 {[%emt 0:14:53]} Nd3 {[%emt 0:13:56]} 24. Na4 {[%emt 0:04:39]} Rab8 {[%emt 0:02:15]} 25. Rad1 {[%emt 0:04:31]} Nxb4 {[%emt 0:03:35]} 26. Rb1 {[%emt 0:00:29]} b5 {[%emt 0:02:02]} 27. Rxb4 {[%emt 0:00:09]} a5 {[%emt 0:01:57]} 28. Rbb1 {[%emt 0:06:47]} bxa4 {[%emt 0:00:08]} 29. f4 {[%emt 0:00:04]} exf4 {[%emt 0:02:20]} 30. gxf4 {[%emt 0:00:15]} Rb4 {[%emt 0:01:54]} 31. e5 {[%emt 0:03:32]} Rh5 {[%emt 0:01:39]} 32. Rxb4 {[%emt 0:02:26]} axb4 {[%emt 0:00:03]} 33. Rb1 {[%emt 0:01:05]} dxe5 {[%emt 0:03:38]} 34. Rxb4 {[%emt 0:00:48]} exf4 {[%emt 0:00:12]} 35. Rxf4 {[%emt 0:00:20]} Rxd5 {[%emt 0:00:32]} 36. Rxf7+ {[%emt 0:00:23]} Ke6 {[%emt 0:00:37]} 37. Rf2 {[%emt 0:00:21]} Ke5 {[%emt 0:00:28]} 38. Kg2 {[%emt 0:00:30]} Rd3 {[%emt 0:00:30]} 39. Re2+ {[%emt 0:00:30]} Kf5 {[%emt 0:00:30]} 40. Rb2 {[%emt 0:00:00]} g5 {[%emt 0:01:44]} 41. Rb5+ {[%emt 0:04:48]} Kg6 {[%emt 0:00:30]} 42. Rb6+ {[%emt 0:02:30]} Kh5 {[%emt 0:00:30]} 43. Rb2 {[%emt 0:00:00]} a3 {[%emt 0:03:30]} 44. Rc2 {[%emt 0:00:00]} Kh4 {[%emt 0:02:30]} 45. Rc4+ {[%emt 0:01:30]} g4 {[%emt 0:00:30]} 46. Rc2 {[%emt 0:00:00]} Rd1 {[%emt 0:00:30]} 47. Rc3 {[%emt 0:05:00]} Rd2+ {[%emt 0:00:30]} 48. Kg1 {[%emt 0:00:00]} Rxa2 {[%emt 0:00:00]} 49. Rb3 {[%emt 0:01:00]} Ra1+ {[%emt 0:08:00]} 50. Kg2 {[%emt 0:00:00]} a2 {[%emt 0:00:30]} 51. Ra3 {[%emt 0:01:00]} Kg5 {[%emt 0:00:30]} 52. Ra5+ {[%emt 0:01:30]} Kf4 {[%emt 0:00:30]} 53. Ra4+ {[%emt 0:00:30]} Ke3 {[%emt 0:00:30]} 54. Ra3+ {[%emt 0:00:30]} Kd4 {[%emt 0:00:30]} 55. Ra8 {[%emt 0:00:30]} Kc5 {[%emt 0:00:00]} 56. Ra5+ {[%emt 0:00:30]} Kb4 {[%emt 0:01:00]} 57. Ra8 {[%emt 0:00:30]} Kb3 {[%emt 0:00:00]} 58. Rb8+ {[%emt 0:00:30]} Ka4 {[%emt 0:00:00]} 59. Ra8+ {[%emt 0:00:00]} Kb5 {[%emt 0:00:30]} 60. Rb8+ {[%emt 0:00:00]} Ka6 {[%emt 0:00:30]} 61. Ra8+ {[%emt 0:00:30]} Kb7 {[%emt 0:00:00]} 62. Ra3 {[%emt 0:00:30]} 1/2-1/2

[Event "22nd ECCC Women 2017"]
[Site "Antalya"]
[Date "2017.10.09"]
[Round "2"]
[White "Haussernot, Cecile"]
[Black "Ince, Safiye Oyku"]
[Result "1-0"]
[ECO "B82"]
[WhiteElo "2169"]
[BlackElo "1861"]
[Annotator "NA"]
[PlyCount "81"]
[EventType "team-tourn"]
[EventCountry "TUR"]
[SourceTitle "playchess.com"]
[Source "ChessBase"]
[SourceQuality "1"]
[WhiteTeam "Mulhouse Philidor"]
[BlackTeam "Mediterranean"]
[TimeControl "40/5400+30:1800+30"]

1. e4 c5 2. Nf3 e6 3. d4 cxd4 4. Nxd4 Nc6 5. Nc3 Qc7 6. Be3 a6 7. a3 Nf6 8. f4 d6 9. Qf3 {[%emt 0:00:30]} Nxd4 {[%emt 0:05:00] B82: Sizilianisch (Scheveninger System)} 10. Bxd4 {[%emt 0:00:30]} e5 {[%emt 0:00:00]} (10... b5 11. Bd3 Bb7 12. Bxf6 gxf6 13. f5 Be7 14. O-O Qc5+ 15. Kh1 h5 16. fxe6 fxe6 17. a4 {1-0 (32) Grischuk,A (2783)-Cori Tello,J (2641) Tbilisi 2017}) 11. fxe5 {[%emt 0:01:30]} dxe5 {[%emt 0:00:00]} 12. Qg3 {[%emt 0:00:00]} Bd6 {[%emt 0:21:30]} 13. Qxg7 {[%emt 0:04:00]} exd4 {[%emt 0:00:30]} 14. Qxh8+ {[%emt 0:05:30]} Ke7 {[%emt 0:00:30]} 15. Qxf6+ {[%emt 0:00:30]} Kxf6 {[%emt 0:01:30]} 16. Nd5+ {[%emt 0:00:00]} Ke5 {[%emt 0:00:00]} 17. Nxc7 {[%emt 0:00:00]} Bxc7 {[%emt 0:00:00]} 18. Bd3 $146 {[%emt 0:00:30]} ({Vorgänger:} 18. O-O-O Kxe4 19. Bd3+ {1-0 (19) Lindroos,R-Tuominen,R Finland 1970}) 18... Be6 {[%emt 0:00:00]} 19. O-O {[%emt 0:00:30]} Rg8 {[%emt 0:01:00]} 20. Rf3 {[%emt 0:00:30]} Bd8 {[%emt 0:01:30]} 21. Raf1 {[%emt 0:01:30]} Rg7 {[%emt 0:01:30]} 22. Kh1 {[%emt 0:05:30]} Be7 {[%emt 0:06:30]} 23. b4 {[%emt 0:14:30]} b5 $18 {[%emt 0:06:30]} 24. c3 {[%emt 0:04:30]} dxc3 {[%emt 0:07:30]} 25. Bc2 {[%emt 0:01:30]} a5 {[%emt 0:09:30]} 26. bxa5 {[%emt 0:07:30]} Bxa3 {[%emt 0:00:30]} 27. Rxc3 {[%emt 0:00:30]} Bb4 {[%emt 0:00:30]} 28. Rc6 {[%emt 0:01:30]} Bxa5 {[%emt 0:01:30]} 29. Rc5+ {[%emt 0:00:30]} Kd4 {[%emt 0:04:30]} 30. Rxb5 {[%emt 0:00:00]} Bc4 {[%emt 0:01:30]} 31. Rd1+ {[%emt 0:01:00]} Kc3 {[%emt 0:00:00]} 32. Rxa5 {[%emt 0:00:00]} Kxc2 {[%emt 0:00:00]} 33. Raa1 {[%emt 0:01:00]} Rg5 {[%emt 0:04:30]} 34. Rac1+ {[%emt 0:01:30]} Kb3 {[%emt 0:00:30]} 35. Rd7 {[%emt 0:00:00]} Be6 {[%emt 0:05:30]} 36. Rb7+ {[%emt 0:00:00]} Ka2 {[%emt 0:00:00]} 37. Rc6 {[%emt 0:02:30]} Ra5 {[%emt 0:01:00]} 38. Kg1 {[%emt 0:00:30]} Ra4 {[%emt 0:02:30]} 39. Kf2 {[%emt 0:01:30]} Ka3 {[%emt 0:00:30]} 40. Ke3 {[%emt 0:01:30]} Ra8 {[%emt 0:01:30]} 41. Rxe6 {[%emt 0:00:30]} 1-0

[Event "22nd ECCC Women 2017"]
[Site "Antalya"]
[Date "2017.10.11"]
[Round "2"]
[White "Hereklioglu, Sude"]
[Black "Celik, Eda"]
[Result "1-0"]
[ECO "D01"]
[WhiteElo "2165"]
[BlackElo "1880"]
[Annotator "ChessBase"]
[PlyCount "107"]
[EventType "team-tourn"]
[EventCountry "TUR"]
[WhiteTeam "Marmara"]
[BlackTeam "Aegean"]
[TimeControl "40/5400+30:1800+30"]

1. d4 Nf6 2. Nc3 d5 3. Bg5 {[%emt 0:00:30]} Nbd7 {[%emt 0:02:00]} 4. Nf3 {[%emt 0:00:30]} g6 {[%emt 0:01:30]} 5. e3 {[%emt 0:02:30]} Bg7 {[%emt 0:00:00]} 6. Bd3 {[%emt 0:00:30]} O-O {[%emt 0:00:00]} 7. O-O {[%emt 0:00:30]} c5 {[%emt 0:00:30]} 8. Bxf6 {[%emt 0:02:30]} Nxf6 {[%emt 0:03:30]} 9. Re1 {[%emt 0:05:30]} b6 {[%emt 0:07:30]} 10. b3 {[%emt 0:06:30]} Bb7 {[%emt 0:04:30]} 11. Ne5 {[%emt 0:15:30]} Rc8 {[%emt 0:18:30]} 12. Na4 {[%emt 0:13:30]} Ne4 {[%emt 0:14:30]} 13. Qe2 {[%emt 0:04:30]} e6 {[%emt 0:06:30]} 14. Rad1 {[%emt 0:05:30]} Qc7 {[%emt 0:06:30]} 15. f3 {[%emt 0:01:30]} Nd6 {[%emt 0:01:30]} 16. c3 {[%emt 0:16:30]} f6 {[%emt 0:11:30]} 17. Ng4 {[%emt 0:01:30]} c4 {[%emt 0:00:30]} 18. Bb1 {[%emt 0:01:30]} Bc6 {[%emt 0:01:01]} 19. e4 {[%emt 0:06:03]} cxb3 {[%emt 0:04:22]} 20. axb3 {[%emt 0:00:22]} dxe4 {[%emt 0:06:39]} 21. fxe4 {[%emt 0:01:05]} Bxa4 {[%emt 0:03:41]} 22. bxa4 {[%emt 0:00:47]} Qxc3 {[%emt 0:00:42]} 23. e5 {[%emt 0:02:15]} fxe5 {[%emt 0:01:56]} 24. dxe5 {[%emt 0:02:52]} Nf5 {[%emt 0:02:48]} 25. Ba2 {[%emt 0:01:52]} Qc5+ {[%emt 0:00:43]} 26. Kh1 {[%emt 0:00:16]} Qe7 {[%emt 0:01:16]} 27. Nf6+ {[%emt 0:05:13]} Bxf6 {[%emt 0:01:46]} 28. exf6 {[%emt 0:00:06]} Rxf6 {[%emt 0:00:30]} 29. Bxe6+ {[%emt 0:00:30]} Rxe6 {[%emt 0:00:00]} 30. Qxe6+ {[%emt 0:00:00]} Qxe6 {[%emt 0:00:23]} 31. Rxe6 {[%emt 0:00:00]} Kf7 {[%emt 0:00:40]} 32. Re5 {[%emt 0:01:11]} Rc4 {[%emt 0:00:31]} 33. a5 {[%emt 0:00:41]} Kf6 {[%emt 0:00:27]} 34. Rb5 {[%emt 0:00:53]} Nd4 {[%emt 0:00:33]} 35. axb6 {[%emt 0:01:09]} axb6 {[%emt 0:00:58]} 36. Rxb6+ {[%emt 0:00:09]} Kg5 {[%emt 0:00:27]} 37. Rb7 {[%emt 0:00:30]} h5 {[%emt 0:00:30]} 38. Rdb1 {[%emt 0:00:30]} Rc2 {[%emt 0:00:30]} 39. R7b2 {[%emt 0:00:30]} Rc3 {[%emt 0:00:04]} 40. Rb4 {[%emt 0:02:01]} Rd3 {[%emt 0:01:03]} 41. Rc1 {[%emt 0:02:35]} Rd2 {[%emt 0:04:30]} 42. h4+ {[%emt 0:04:30]} Kh6 {[%emt 0:04:30]} 43. Rb7 {[%emt 0:01:30]} Nf5 {[%emt 0:03:32]} 44. Rb4 {[%emt 0:04:30]} Ne3 {[%emt 0:01:26]} 45. Re4 {[%emt 0:02:30]} Ng4 {[%emt 0:10:44]} 46. Re7 {[%emt 0:00:29]} Rd4 {[%emt 0:06:36]} 47. Kg1 {[%emt 0:01:04]} Rd6 {[%emt 0:00:47]} 48. Rce1 {[%emt 0:00:43]} Rd3 {[%emt 0:01:22]} 49. Kf1 {[%emt 0:01:55]} Rd2 {[%emt 0:00:04]} 50. Rf7 {[%emt 0:00:44]} Nh2+ {[%emt 0:01:16]} 51. Kg1 {[%emt 0:00:04]} Ng4 {[%emt 0:00:00]} 52. g3 {[%emt 0:02:33]} Rd8 {[%emt 0:00:35]} 53. Ree7 {[%emt 0:00:20]} Rh8 {[%emt 0:00:58]} 54. Kg2 {[%emt 0:00:09]} 1-0

[Event "22nd ECCC Women 2017"]
[Site "Antalya"]
[Date "2017.10.11"]
[Round "2"]
[White "Neuhauser, Salome"]
[Black "Ozbek, Busra"]
[Result "1-0"]
[ECO "B40"]
[WhiteElo "2140"]
[BlackElo "1850"]
[Annotator "ChessBase"]
[PlyCount "97"]
[EventType "team-tourn"]
[EventCountry "TUR"]
[WhiteTeam "Mulhouse Philidor"]
[BlackTeam "Mediterranean"]
[TimeControl "40/5400+30:1800+30"]

1. e4 c5 2. Nf3 e6 3. c3 Nf6 {[%emt 0:01:00]} 4. Bd3 {[%emt 0:04:00]} Nc6 {[%emt 0:08:30]} 5. O-O {[%emt 0:00:30]} d5 {[%emt 0:04:30]} 6. e5 {[%emt 0:05:30]} Nd7 {[%emt 0:02:30]} 7. Re1 {[%emt 0:02:30]} Qc7 {[%emt 0:05:30]} 8. Qe2 {[%emt 0:05:30]} c4 {[%emt 0:15:30]} 9. Bc2 {[%emt 0:00:00]} b5 {[%emt 0:02:30]} 10. d4 {[%emt 0:04:00]} h6 {[%emt 0:08:30]} 11. Nbd2 {[%emt 0:07:30]} Be7 {[%emt 0:02:30]} 12. Nf1 {[%emt 0:00:30]} Bb7 {[%emt 0:02:30]} 13. Bd2 {[%emt 0:48:58]} a5 {[%emt 0:08:30]} 14. b3 {[%emt 0:00:30]} Nb6 {[%emt 0:00:30]} 15. Ne3 {[%emt 0:00:30]} Ba6 {[%emt 0:00:30]} 16. bxc4 {[%emt 0:00:30]} dxc4 {[%emt 0:00:30]} 17. Be4 {[%emt 0:00:30]} Rd8 {[%emt 0:00:30]} 18. a3 {[%emt 0:13:02]} Bb7 {[%emt 0:20:26]} 19. Nf1 {[%emt 0:00:30]} Na7 {[%emt 0:00:30]} 20. Ng3 {[%emt 0:00:30]} Bxe4 {[%emt 0:00:30]} 21. Qxe4 {[%emt 0:00:30]} Nd5 {[%emt 0:00:30]} 22. Qg4 {[%emt 0:00:30]} g6 {[%emt 0:00:30]} 23. Ne4 {[%emt 0:02:09]} Nc8 {[%emt 0:14:20]} 24. Nh4 {[%emt 0:03:08]} g5 {[%emt 0:00:30]} 25. Nf3 {[%emt 0:00:30]} h5 {[%emt 0:00:30]} 26. Qg3 {[%emt 0:00:30]} g4 {[%emt 0:00:30]} 27. Nfg5 {[%emt 0:00:30]} Ncb6 {[%emt 0:00:30]} 28. f3 {[%emt 0:00:30]} b4 {[%emt 0:00:30]} 29. axb4 {[%emt 0:00:30]} axb4 {[%emt 0:00:30]} 30. fxg4 {[%emt 0:00:30]} hxg4 {[%emt 0:00:30]} 31. Rf1 {[%emt 0:00:30]} Bxg5 {[%emt 0:00:30]} 32. Bxg5 {[%emt 0:00:30]} Rd7 {[%emt 0:00:30]} 33. cxb4 {[%emt 0:00:30]} c3 {[%emt 0:00:30]} 34. Rac1 {[%emt 0:00:30]} Qc4 {[%emt 0:00:00]} 35. Nd6+ {[%emt 0:00:09]} Rxd6 {[%emt 0:00:00]} 36. exd6 {[%emt 0:00:30]} Qxd4+ {[%emt 0:00:00]} 37. Kh1 {[%emt 0:00:30]} Qxb4 {[%emt 0:00:00]} 38. Rb1 {[%emt 0:00:30]} Qc5 {[%emt 0:00:00]} 39. d7+ {[%emt 0:00:30]} Kxd7 {[%emt 0:00:00]} 40. Rxf7+ {[%emt 0:00:00]} Kc6 {[%emt 0:04:44]} 41. Re1 {[%emt 0:08:04]} Kb5 {[%emt 0:02:30]} 42. Qd3+ {[%emt 0:00:30]} Qc4 {[%emt 0:00:30]} 43. Rb1+ {[%emt 0:00:30]} Nb4 {[%emt 0:00:30]} 44. Qxc4+ {[%emt 0:00:30]} Kxc4 {[%emt 0:00:30]} 45. Rf4+ {[%emt 0:00:30]} Kd3 {[%emt 0:00:30]} 46. Rfxb4 {[%emt 0:00:30]} Nd5 {[%emt 0:00:30]} 47. Rxg4 {[%emt 0:00:30]} c2 {[%emt 0:00:30]} 48. Rb3+ {[%emt 0:00:30]} Ke2 {[%emt 0:00:30]} 49. Re4+ {[%emt 0:00:30]} 1-0

[Event "22nd ECCC Women 2017"]
[Site "Antalya"]
[Date "2017.10.09"]
[Round "2"]
[White "Kaplan, Ebru"]
[Black "Richard, Emma"]
[Result "1/2-1/2"]
[ECO "B31"]
[WhiteElo "2001"]
[BlackElo "2086"]
[Annotator "NA"]
[PlyCount "76"]
[EventType "team-tourn"]
[EventCountry "TUR"]
[SourceTitle "playchess.com"]
[Source "ChessBase"]
[SourceQuality "1"]
[WhiteTeam "Mediterranean"]
[BlackTeam "Mulhouse Philidor"]
[TimeControl "40/5400+30:1800+30"]

1. e4 c5 2. Nf3 Nc6 3. Bb5 Nf6 {[%emt 0:01:00]} 4. Qe2 {[%emt 0:17:00]} g6 {[%emt 0:00:30]} 5. c3 {[%emt 0:03:30]} Bg7 {[%emt 0:02:30]} 6. O-O {[%emt 0:01:30]} O-O {[%emt 0:04:30]} 7. h3 {[%emt 0:06:30]} d6 {[%emt 0:01:30]} 8. d4 {[%emt 0:02:30]} cxd4 {[%emt 0:01:30]} 9. cxd4 {[%emt 0:00:30]} a6 {[%emt 0:01:30]} 10. Ba4 {[%emt 0:04:30]} b5 {[%emt 0:01:30]} 11. Bc2 {[%emt 0:01:30]} Qc7 {[%emt 0:11:30]} 12. a3 $11 {[%emt 0:05:30]} Nd7 {[%emt 0:12:30]} 13. Be3 {[%emt 0:02:30]} e5 {[%emt 0:10:30]} 14. Rd1 {[%emt 0:08:30]} Nb6 {[%emt 0:06:30]} 15. Nc3 {[%emt 0:05:30]} Nc4 {[%emt 0:06:30]} 16. dxe5 {[%emt 0:07:30]} N6xe5 {[%emt 0:02:30]} 17. Nxe5 {[%emt 0:03:30]} Nxe3 {[%emt 0:05:30]} 18. Nxg6 {[%emt 0:12:16]} Bxc3 {[%emt 0:06:30]} 19. Nxf8 {[%emt 0:08:22]} Bxb2 {[%emt 0:07:24]} 20. fxe3 {[%emt 0:01:56]} Bxa1 {[%emt 0:02:17]} 21. Rxa1 {[%emt 0:00:30]} Kxf8 {[%emt 0:00:00]} 22. Bb3 {[%emt 0:02:17]} Qc3 {[%emt 0:03:56]} 23. Rb1 {[%emt 0:00:07]} Ra7 {[%emt 0:00:00]} 24. Kh1 {[%emt 0:01:34]} Rc7 {[%emt 0:05:17]} 25. Qd1 {[%emt 0:03:02]} Qe5 {[%emt 0:00:12]} 26. Bd5 {[%emt 0:00:12]} Be6 {[%emt 0:02:39]} 27. a4 {[%emt 0:01:48]} Bxd5 {[%emt 0:04:05]} 28. exd5 {[%emt 0:00:30]} Rc5 {[%emt 0:00:06]} 29. axb5 {[%emt 0:00:39]} axb5 {[%emt 0:01:17]} 30. Qd3 {[%emt 0:00:34]} Rxd5 {[%emt 0:00:10]} 31. Qxh7 {[%emt 0:00:11]} Qxe3 {[%emt 0:00:56]} 32. Rf1 {[%emt 0:00:48]} Qe6 {[%emt 0:00:14]} 33. Qh8+ {[%emt 0:00:41]} Ke7 {[%emt 0:00:04]} 34. Qh4+ {[%emt 0:00:00]} Kd7 {[%emt 0:00:26]} 35. Qh7 {[%emt 0:00:38]} Ke7 {[%emt 0:00:57]} 36. Qh4+ {[%emt 0:00:30]} Kd7 {[%emt 0:00:30]} 37. Qh7 {[%emt 0:00:30]} Ke7 {[%emt 0:00:30]} 38. Qh4+ {[%emt 0:00:30]} Kd7 {[%emt 0:00:00]} 1/2-1/2

[Event "22nd ECCC Women 2017"]
[Site "Antalya"]
[Date "2017.10.10"]
[Round "2"]
[White "Sade, Defne"]
[Black "Ozbay, Ece"]
[Result "0-1"]
[ECO "B85"]
[WhiteElo "1951"]
[BlackElo "1998"]
[Annotator "NA"]
[PlyCount "94"]
[EventType "team-tourn"]
[EventCountry "TUR"]
[SourceTitle "playchess.com"]
[Source "ChessBase"]
[SourceQuality "1"]
[WhiteTeam "Aegean"]
[BlackTeam "Marmara"]
[TimeControl "40/5400+30:1800+30"]

1. e4 c5 2. Nf3 e6 3. d4 cxd4 4. Nxd4 Nc6 5. Nc3 Qc7 6. Be2 Nf6 7. Be3 a6 {[%emt 0:02:00]} 8. O-O {[%emt 0:02:00]} Be7 {[%emt 0:02:30]} 9. f4 {[%emt 0:01:30]} d6 {[%emt 0:00:30]} 10. a4 {[%emt 0:02:30]} O-O {[%emt 0:02:30]} 11. Qe1 {[%emt 0:04:30]} b6 {[%emt 0:01:30]} 12. Nxc6 {[%emt 0:23:30]} Qxc6 {[%emt 0:01:30]} 13. Bf3 {[%emt 0:01:30]} Nd7 {[%emt 0:02:30]} 14. Qg3 {[%emt 0:03:30]} Rd8 {[%emt 0:11:30]} 15. Kh1 {[%emt 0:13:30]} Bb7 {[%emt 0:07:30]} 16. e5 {[%emt 0:11:30]} Qc7 {[%emt 0:07:30]} 17. f5 {[%emt 0:20:02]} dxe5 {[%emt 0:09:30]} 18. fxe6 {[%emt 0:00:51]} fxe6 {[%emt 0:00:30]} 19. Qg4 {[%emt 0:01:30]} Bxf3 {[%emt 0:13:30]} 20. Qxe6+ {[%emt 0:01:27]} Kh8 {[%emt 0:00:00]} 21. Qxe7 {[%emt 0:02:18]} Bh5 {[%emt 0:01:00]} 22. Qg5 {[%emt 0:07:17]} Bg6 {[%emt 0:01:30]} 23. h4 {[%emt 0:00:59]} Nf6 {[%emt 0:01:30]} 24. Qg3 {[%emt 0:02:41]} Nh5 {[%emt 0:03:30]} 25. Qg5 {[%emt 0:00:42]} Rf8 {[%emt 0:07:30]} 26. Nd5 {[%emt 0:00:31]} Rxf1+ {[%emt 0:00:30]} 27. Rxf1 {[%emt 0:00:03]} Qc4 {[%emt 0:00:30]} 28. Rd1 {[%emt 0:01:04]} Qxc2 {[%emt 0:13:07]} 29. Nc3 {[%emt 0:00:19]} h6 {[%emt 0:03:21]} 30. Qxe5 {[%emt 0:00:41]} Re8 {[%emt 0:00:23]} 31. Qd4 {[%emt 0:00:19]} Ng3+ {[%emt 0:00:12]} 32. Kg1 {[%emt 0:00:35]} Nf5 {[%emt 0:00:11]} 33. Qd2 {[%emt 0:00:38]} Nxe3 {[%emt 0:00:59]} 34. Qxc2 {[%emt 0:00:14]} Bxc2 {[%emt 0:00:00]} 35. Re1 {[%emt 0:00:16]} Bg6 {[%emt 0:00:40]} 36. Kf2 {[%emt 0:00:16]} Nc4 {[%emt 0:00:00]} 37. Rxe8+ {[%emt 0:00:32]} Bxe8 {[%emt 0:00:00]} 38. b3 {[%emt 0:00:00]} Na5 {[%emt 0:02:14]} 39. b4 {[%emt 0:00:52]} Nc6 {[%emt 0:00:01]} 40. b5 {[%emt 0:00:00]} axb5 {[%emt 0:02:22]} 41. axb5 {[%emt 0:00:23]} Ne7 {[%emt 0:00:30]} 42. g4 {[%emt 0:00:30]} Kg8 {[%emt 0:00:30]} 43. Kf3 {[%emt 0:00:30]} Kf7 {[%emt 0:00:30]} 44. Ke4 {[%emt 0:00:30]} Ke6 {[%emt 0:00:30]} 45. g5 {[%emt 0:00:30]} h5 {[%emt 0:00:30]} 46. Ne2 {[%emt 0:00:30]} Bg6+ {[%emt 0:00:30]} 47. Kd4 {[%emt 0:00:30]} Nf5+ {[%emt 0:00:30]} 0-1

[Event "22nd ECCC Women 2017"]
[Site "Antalya"]
[Date "2017.10.09"]
[Round "2"]
[White "Ayan, Bengu Sena"]
[Black "Caglar, Sila"]
[Result "1-0"]
[ECO "A52"]
[WhiteElo "1888"]
[BlackElo "2153"]
[Annotator "NA"]
[PlyCount "46"]
[EventType "team-tourn"]
[EventCountry "TUR"]
[SourceTitle "playchess.com"]
[Source "ChessBase"]
[SourceQuality "1"]
[WhiteTeam "Aegean"]
[BlackTeam "Marmara"]
[TimeControl "40/5400+30:1800+30"]

1. d4 Nf6 2. c4 e5 3. dxe5 Ng4 4. Bf4 g5 {[%emt 0:00:30]} 5. Bg3 {[%emt 0:02:30]} Bg7 {[%emt 0:00:30]} 6. e3 {[%emt 0:09:30]} Nxe5 {[%emt 0:01:30]} 7. Nc3 {[%emt 0:04:30]} Nbc6 {[%emt 0:02:30]} 8. Be2 {[%emt 0:02:30]} d6 {[%emt 0:12:30]} 9. Nf3 {[%emt 0:03:30]} Be6 {[%emt 0:05:30]} 10. Qa4 {[%emt 0:06:30]} O-O {[%emt 0:09:30]} 11. h4 {[%emt 0:14:30]} g4 $1 {[%emt 0:04:30]} 12. Nd4 {[%emt 0:04:30]} Bd7 {[%emt 0:05:30]} 13. Qc2 $17 {[%emt 0:05:30]} (13. Qd1 $1 $15) 13... Nxd4 {[%emt 0:18:30]} 14. exd4 {[%emt 0:01:30]} Nc6 {[%emt 0:00:30]} 15. O-O {[%emt 0:12:30]} Nxd4 {[%emt 0:01:30]} 16. Qd2 {[%emt 0:00:30]} Bf5 {[%emt 0:08:30]} 17. Nd5 {[%emt 0:08:30]} Re8 {[%emt 0:09:41]} 18. Ne3 {[%emt 0:02:30]} h5 {[%emt 0:05:54]} 19. Bd3 {[%emt 0:03:10]} Bd7 {[%emt 0:08:41]} 20. Nd5 {[%emt 0:05:22]} Nf5 {[%emt 0:02:23]} 21. Bxf5 {[%emt 0:04:20]} Bxf5 {[%emt 0:00:02]} 22. Rfe1 {[%emt 0:00:10]} Be6 {[%emt 0:02:42]} 23. Nf4 {[%emt 0:01:52]} Bxc4 {[%emt 0:01:07]} 1-0

[Event "22nd ECCC Women 2017"]
[Site "Antalya"]
[Date "2017.10.09"]
[Round "2"]
[White "Can, Isil"]
[Black "Choisy, Mathilde"]
[Result "1/2-1/2"]
[ECO "B08"]
[WhiteElo "1791"]
[BlackElo "2162"]
[Annotator "NA"]
[PlyCount "73"]
[EventType "team-tourn"]
[EventCountry "TUR"]
[SourceTitle "playchess.com"]
[Source "ChessBase"]
[SourceQuality "1"]
[WhiteTeam "Mediterranean"]
[BlackTeam "Mulhouse Philidor"]
[TimeControl "40/5400+30:1800+30"]

1. e4 d6 2. d4 Nf6 3. Nc3 g6 4. Nf3 Bg7 {[%emt 0:02:30]} 5. Bd3 {[%emt 0:03:30]} O-O {[%emt 0:00:30]} 6. Ne2 {[%emt 0:10:30]} c5 {[%emt 0:08:30]} 7. c3 {[%emt 0:01:30]} Bg4 {[%emt 0:06:30]} 8. d5 {[%emt 0:10:30]} Bxf3 {[%emt 0:09:30]} 9. gxf3 {[%emt 0:00:00]} e6 {[%emt 0:01:30]} 10. Bc4 $17 {[%emt 0:06:00]} (10. dxe6 $1 $14 fxe6 11. O-O) 10... exd5 {[%emt 0:10:30]} 11. Bxd5 {[%emt 0:00:30]} Nxd5 {[%emt 0:03:30]} 12. Qxd5 {[%emt 0:00:00]} Nc6 {[%emt 0:00:00]} 13. Bf4 {[%emt 0:02:00]} Be5 {[%emt 0:22:00]} 14. O-O-O {[%emt 0:09:30]} Bxf4+ {[%emt 0:00:30]} 15. Nxf4 {[%emt 0:00:30]} Ne5 {[%emt 0:00:30]} 16. h4 {[%emt 0:25:30]} Qf6 {[%emt 0:00:30]} 17. Qd2 {[%emt 0:00:30]} Nxf3 {[%emt 0:11:30]} 18. Nd5 {[%emt 0:02:30]} Nxd2 {[%emt 0:00:30]} 19. Nxf6+ {[%emt 0:00:30]} Kg7 {[%emt 0:00:30]} 20. Rxd2 {[%emt 0:00:00]} Kxf6 {[%emt 0:00:30]} 21. Rxd6+ {[%emt 0:00:00]} Ke7 {[%emt 0:01:32]} 22. Rhd1 {[%emt 0:02:30]} Rad8 {[%emt 0:01:38]} 23. Rxd8 {[%emt 0:07:26]} Rxd8 {[%emt 0:00:30]} 24. Rxd8 {[%emt 0:00:30]} Kxd8 {[%emt 0:00:00]} 25. Kd2 {[%emt 0:00:00]} Kd7 {[%emt 0:00:20]} 26. Kd3 {[%emt 0:05:02]} Kd6 {[%emt 0:00:41]} 27. c4 {[%emt 0:02:33]} f6 {[%emt 0:01:29]} 28. f4 {[%emt 0:01:53]} h6 {[%emt 0:00:39]} 29. Ke3 {[%emt 0:00:51]} a6 {[%emt 0:07:20]} 30. b3 {[%emt 0:03:44]} g5 {[%emt 0:07:15]} 31. Kf3 {[%emt 0:05:46]} Ke6 {[%emt 0:00:36]} 32. Kg4 {[%emt 0:00:46]} gxf4 {[%emt 0:00:52]} 33. Kxf4 {[%emt 0:00:00]} h5 {[%emt 0:00:00]} 34. Kf3 {[%emt 0:00:55]} Ke5 {[%emt 0:02:22]} 35. Ke3 {[%emt 0:00:09]} b6 {[%emt 0:00:51]} 36. a3 {[%emt 0:00:28]} a5 {[%emt 0:01:24]} 37. a4 {[%emt 0:00:04]} 1/2-1/2